bitfinex/quotes_BTCUSD_20240611
["timestamp","ask_amount","ask_price","bid_price","bid_amount"]
[1718070663398,0.9959222,69391.0,69390.0,0.27729767]
[1718070664676,1.01472621,69391.0,69390.0,0.27729767]
[1718070666593,1.01472621,69391.0,69390.0,0.17729767]
[1718070667421,1.01472621,69391.0,69390.0,0.01598831]
[1718070667638,1.01472621,69391.0,69390.0,0.000946]
[1718070668050,1.01472621,69391.0,69390.0,0.0149908]
[1718070668255,1.01472621,69391.0,69390.0,0.000946]
[1718070668492,1.01472621,69391.0,69390.0,0.0149908]
[1718070678888,1.02472621,69391.0,69390.0,0.0149908]
[1718070679138,1.01472621,69391.0,69390.0,0.0149908]
[1718070679338,1.02472621,69391.0,69390.0,0.000946]
[1718070679509,1.01472621,69391.0,69390.0,0.000946]
[1718070685118,1.02472621,69391.0,69390.0,0.000946]
[1718070690896,1.01472621,69391.0,69390.0,0.000946]
[1718070695236,1.02472621,69391.0,69390.0,0.000946]
[1718070700199,1.02672621,69391.0,69390.0,0.000946]
[1718070701168,1.09652621,69391.0,69390.0,0.000946]
[1718070701729,1.08752621,69391.0,69390.0,0.000946]
[1718070701938,1.09752621,69391.0,69390.0,0.000946]
[1718070702571,1.02772621,69391.0,69390.0,0.000946]
[1718070702761,1.08752621,69391.0,69390.0,0.000946]
[1718070703408,1.09752621,69391.0,69390.0,0.000946]
[1718070704484,1.08752621,69391.0,69390.0,0.000946]
[1718070705306,1.09752621,69391.0,69390.0,0.000946]
[1718070705514,1.08752621,69391.0,69390.0,0.000946]
[1718070705688,1.09752621,69391.0,69390.0,0.000946]
[1718070705926,1.02772621,69391.0,69390.0,0.000946]
[1718070706131,1.08752621,69391.0,69390.0,0.000946]
[1718070706344,1.09752621,69391.0,69390.0,0.000946]
[1718070706555,1.01772621,69391.0,69390.0,0.000946]
[1718070706756,1.08752621,69391.0,69390.0,0.000946]
[1718070706925,1.01772621,69391.0,69390.0,0.000946]
[1718070707165,1.08752621,69391.0,69390.0,0.000946]
[1718070710119,1.09752621,69391.0,69390.0,0.000946]
[1718070711692,1.08752621,69391.0,69390.0,0.000946]
[1718070711954,1.01772621,69391.0,69390.0,0.000946]
[1718070712089,1.08752621,69391.0,69390.0,0.000946]
[1718070712882,1.09752621,69391.0,69390.0,0.000946]
[1718070714184,1.08752621,69391.0,69390.0,0.000946]
[1718070716060,1.09752621,69391.0,69390.0,0.000946]
[1718070718740,1.08752621,69391.0,69390.0,0.000946]
[1718070718900,1.09752621,69391.0,69390.0,0.000946]
[1718070720904,1.01772621,69391.0,69390.0,0.000946]
[1718070721130,1.08752621,69391.0,69390.0,0.000946]
[1718070721944,1.09752621,69391.0,69390.0,0.000946]
[1718070722577,1.08752621,69391.0,69390.0,0.000946]
[1718070724101,1.09752621,69391.0,69390.0,0.000946]
[1718070725949,1.02772621,69391.0,69390.0,0.000946]
[1718070726176,1.09752621,69391.0,69390.0,0.000946]
[1718070726845,1.38595614,69391.0,69390.0,0.000946]
[1718070727947,1.38395614,69391.0,69390.0,0.000946]
[1718070728165,1.38295614,69391.0,69390.0,0.000946]
[1718070728413,1.43114572,69391.0,69390.0,0.000946]
[1718070728675,1.38795614,69391.0,69390.0,0.000946]
[1718070728886,1.38295614,69391.0,69390.0,0.000946]
[1718070729098,1.39095614,69391.0,69390.0,0.000946]
[1718070729838,1.43414572,69391.0,69390.0,0.000946]
[1718070730051,1.38695614,69391.0,69390.0,0.000946]
[1718070730290,1.43014572,69391.0,69390.0,0.000946]
[1718070730557,1.42614572,69391.0,69390.0,0.000946]
[1718070730993,1.75270611,69391.0,69390.0,0.000946]
[1718070731204,1.95270611,69391.0,69390.0,0.000946]
[1718070731416,1.64774052,69391.0,69390.0,0.000946]
[1718070731640,1.65474052,69391.0,69390.0,0.000946]
[1718070731867,1.67874052,69391.0,69390.0,0.000946]
[1718070732305,1.68674052,69391.0,69390.0,0.000946]
[1718070732550,1.62195614,69391.0,69390.0,0.000946]
[1718070733203,1.42195614,69391.0,69390.0,0.000946]
[1718070734095,1.4941161,69391.0,69390.0,0.000946]
[1718070734532,1.6941161,69391.0,69390.0,0.000946]
[1718070735003,1.7941161,69391.0,69390.0,0.000946]
[1718070735230,2.61241853,69391.0,69390.0,0.000946]
[1718070735442,2.70892213,69391.0,69390.0,0.000946]
[1718070735658,2.63912213,69391.0,69390.0,0.000946]
[1718070735897,2.81678992,69391.0,69390.0,0.000946]
[1718070736126,2.80878992,69391.0,69390.0,0.000946]
[1718070736381,2.96310985,69391.0,69390.0,0.000946]
[1718070736791,3.34526727,69391.0,69390.0,0.000946]
[1718070737012,3.34526727,69391.0,69385.0,0.000946]
[1718070737013,0.96313721,69386.0,69385.0,0.000946]
[1718070737300,2.86855471,69386.0,69385.0,0.000946]
[1718070737510,3.06791561,69386.0,69385.0,0.000946]
[1718070737753,3.24838781,69386.0,69385.0,0.000946]
[1718070738177,3.17858781,69386.0,69385.0,0.000946]
[1718070738386,3.35611956,69386.0,69385.0,0.000946]
[1718070739303,3.19472846,69386.0,69385.0,0.000946]
[1718070739514,2.87182635,69386.0,69385.0,0.000946]
[1718070739731,3.17085164,69386.0,69385.0,0.000946]
[1718070740349,3.25699693,69386.0,69385.0,0.000946]
[1718070740556,3.27099693,69386.0,69385.0,0.000946]
[1718070740893,3.25699693,69386.0,69385.0,0.000946]
[1718070741328,3.17085164,69386.0,69385.0,0.000946]
[1718070741548,2.88260964,69386.0,69385.0,0.000946]
[1718070741758,3.32245164,69386.0,69385.0,0.000946]
[1718070741967,3.33645164,69386.0,69385.0,0.000946]
[1718070742195,3.33648594,69386.0,69385.0,0.000946]
[1718070742702,3.42261591,69386.0,69385.0,0.000946]
[1718070743562,3.33648594,69386.0,69385.0,0.000946]
[1718070744012,3.42258207,69386.0,69385.0,0.000946]
[1718070744434,3.33648594,69386.0,69385.0,0.000946]
[1718070745355,3.01709436,69386.0,69385.0,0.000946]
[1718070746469,3.08163263,69386.0,69385.0,0.000946]
[1718070748408,3.01709436,69386.0,69385.0,0.000946]
[1718070749924,3.03471072,69386.0,69385.0,0.000946]
[1718070753542,3.47785832,69386.0,69385.0,0.000946]
[1718070753773,3.47785832,69386.0,69381.0,0.000946]
[1718070753774,1.18901621,69382.0,69381.0,0.000946]
[1718070753995,3.30445939,69382.0,69381.0,0.000946]
[1718070754254,3.30445939,69382.0,69380.0,0.00946]
[1718070754255,1.43981021,69381.0,69380.0,0.00946]
[1718070754471,1.25142221,69379.0,69378.0,0.00946]
[1718070754703,3.32789954,69379.0,69378.0,0.00946]
[1718070754943,3.42098024,69379.0,69378.0,0.007]
[1718070755187,3.42098024,69379.0,69349.0,0.20861535]
[1718070755188,0.36320721,69352.0,69350.0,0.0005025]
[1718070755460,1.42387793,69352.0,69350.0,0.0005025]
[1718070755669,1.69119786,69352.0,69351.0,0.02306887]
[1718070755884,1.69119786,69352.0,69351.0,0.00946]
[1718070756086,1.62139786,69352.0,69351.0,0.00946]
[1718070756302,1.89119786,69352.0,69351.0,0.00946]
[1718070756520,1.86819786,69352.0,69351.0,0.00946]
[1718070756770,1.86819786,69352.0,69351.0,0.00690772]
[1718070757002,1.88219786,69352.0,69351.0,0.00690772]
[1718070757239,1.89619786,69352.0,69351.0,0.00690772]
[1718070757704,1.99619786,69352.0,69351.0,0.00690772]
[1718070758129,1.98219786,69352.0,69351.0,0.00690772]
[1718070758558,1.99619786,69352.0,69351.0,0.00690772]
[1718070758802,1.99977216,69352.0,69351.0,0.00690772]
[1718070759029,0.20901621,69331.0,69330.0,0.001]
[1718070759247,0.20901621,69331.0,69317.0,0.03225937]
[1718070759248,0.38870401,69324.0,69317.0,0.03225937]
[1718070759480,0.94506621,69324.0,69317.0,0.03225937]
[1718070759695,1.04506621,69324.0,69317.0,0.03225937]
[1718070759922,1.01526283,69324.0,69317.0,0.03225937]
[1718070760140,1.08506283,69324.0,69317.0,0.03225937]
[1718070760382,1.24645154,69324.0,69317.0,0.03225937]
[1718070760648,0.43328221,69316.0,69315.0,0.00996]
[1718070760879,0.19,69295.0,69291.0,0.001]
[1718070761105,0.0002122,69293.0,69287.0,0.001]
[1718070761325,0.57635,69292.0,69287.0,0.001]
[1718070761536,0.5765622,69292.0,69287.0,0.001]
[1718070761767,0.0002122,69288.0,69287.0,0.001]
[1718070761986,0.57635,69288.0,69287.0,0.001]
[1718070762206,0.57635,69288.0,69281.0,0.00946]
[1718070762422,0.5765622,69288.0,69281.0,0.00946]
[1718070762644,0.5765622,69288.0,69286.0,0.0698]
[1718070762645,0.57635,69288.0,69286.0,0.0698]
[1718070762854,0.56385,69288.0,69286.0,0.0698]
[1718070763066,0.56385,69288.0,69281.0,0.15377993]
[1718070763283,0.5640622,69288.0,69281.0,0.06838199]
[1718070763508,0.0002122,69287.0,69282.0,0.00119599]
[1718070763728,0.56385,69286.0,69281.0,0.00795599]
[1718070764426,0.0002122,69285.0,69278.0,0.10119599]
[1718070764656,0.56385,69284.0,69279.0,0.1]
[1718070764893,0.07215996,69281.0,69276.0,0.03225937]
[1718070765104,0.56385,69280.0,69276.0,0.02725937]
[1718070765312,0.56385,69280.0,69277.0,0.01324219]
[1718070765531,0.75385,69280.0,69277.0,0.01324219]
[1718070765776,0.0002122,69278.0,69277.0,0.01324219]
[1718070765994,0.7540622,69278.0,69277.0,0.01324219]
[1718070766211,0.7540622,69278.0,69276.0,0.02725937]
[1718070766212,0.20901621,69277.0,69276.0,0.02725937]
[1718070766428,0.91718614,69277.0,69276.0,0.02725937]
[1718070766646,0.70816993,69277.0,69268.0,0.22553612]
[1718070766872,0.07215996,69272.0,69268.0,0.22553612]
[1718070767090,0.56385,69271.0,69268.0,0.22553612]
[1718070767529,0.70816993,69271.0,69268.0,0.22553612]
[1718070767738,0.69436993,69271.0,69268.0,0.22553612]
[1718070767947,0.55005,69271.0,69268.0,0.22553612]
[1718070768182,0.72505,69271.0,69268.0,0.22553612]
[1718070768627,0.69120931,69271.0,69268.0,0.22553612]
[1718070768854,0.55005,69271.0,69268.0,0.22553612]
[1718070769088,0.56405,69271.0,69268.0,0.22553612]
[1718070769305,0.55005,69271.0,69268.0,0.22553612]
[1718070769786,0.56405,69271.0,69268.0,0.22553612]
[1718070769993,0.56405,69271.0,69270.0,0.3]
[1718070769994,0.55005,69271.0,69270.0,0.3]
[1718070770205,0.55005,69271.0,69270.0,0.64431993]
[1718070770426,0.55005,69271.0,69270.0,0.5]
[1718070770650,0.56405,69271.0,69270.0,0.443]
[1718070771145,0.54969101,69271.0,69270.0,0.543]
[1718070771374,0.54969101,69271.0,69270.0,0.687362]
[1718070771375,0.54933202,69271.0,69270.0,0.687362]
[1718070771609,0.56933202,69271.0,69270.0,0.68731993]
[1718070772062,0.54933202,69271.0,69270.0,0.68731993]
[1718070773370,0.54933202,69271.0,69270.0,0.67731993]
[1718070773589,0.54933202,69271.0,69270.0,0.323]
[1718070773590,0.54915847,69271.0,69270.0,0.323]
[1718070773797,0.54915847,69271.0,69270.0,0.3]
[1718070774015,0.54915847,69271.0,69270.0,0.21415071]
[1718070774246,0.54915847,69271.0,69270.0,0.11415071]
[1718070774471,0.60407432,69271.0,69270.0,0.01415071]
[1718070774811,0.76807432,69271.0,69270.0,0.01415071]
[1718070774911,0.76807432,69271.0,69268.0,0.22553612]
[1718070775131,0.76807432,69271.0,69270.0,0.01415071]
[1718070775351,0.75939425,69271.0,69269.0,0.01416554]
[1718070775596,0.97079987,69271.0,69270.0,0.01416462]
[1718070775838,0.09999991,69235.0,69231.0,0.22166898]
[1718070776060,0.09999991,69235.0,69224.0,0.1644]
[1718070776280,0.09999991,69235.0,69207.0,0.144492]
[1718070776281,0.175,69232.0,69207.0,0.144492]
[1718070776539,0.64915838,69235.0,69208.0,0.14431993]
[1718070776540,0.175,69225.0,69208.0,0.14431993]
[1718070776812,0.54915847,69224.0,69208.0,0.14431993]
[1718070777033,0.075,69223.0,69208.0,0.14431993]
[1718070777283,0.075,69223.0,69198.0,0.509471]
[1718070777284,0.07215996,69214.0,69198.0,0.509471]
[1718070777504,1.4296,69213.0,69198.0,0.509471]
[1718070777718,1.4296,69213.0,69198.0,0.009471]
[1718070777719,0.075,69211.0,69198.0,0.009471]
[1718070777974,0.4078336,69210.0,69198.0,0.009471]
[1718070778218,0.4078336,69210.0,69192.0,0.00588501]
[1718070778219,0.02,69193.0,69192.0,0.00588501]
[1718070778461,3.8363336,69193.0,69150.0,0.03225937]
[1718070778740,0.1,69180.0,69121.0,0.00030737]
[1718070778980,0.1,69180.0,69108.0,0.03225937]
[1718070778981,0.361,69151.0,69108.0,0.03225937]
[1718070779199,0.02,69141.0,69128.0,0.43295979]
[1718070779437,0.63453,69140.0,69133.0,0.5]
[1718070779658,0.63453,69140.0,69108.0,0.03225937]
[1718070779659,0.1,69139.0,69108.0,0.03225937]
[1718070779918,0.175,69111.0,69108.0,0.03225937]
[1718070780132,0.57803,69138.0,69082.0,0.00122616]
[1718070780133,0.43283749,69109.0,69082.0,0.00122616]
[1718070780354,0.43283749,69109.0,69050.0,0.0615381]
[1718070780355,0.28,69028.0,69019.0,0.00889341]
[1718070780580,0.28,69028.0,68984.0,0.0254666]
[1718070780581,0.2,69001.0,69000.0,3.11845108]
[1718070780808,0.8623,69001.0,69000.0,3.61596262]
[1718070781023,0.8623,69001.0,69000.0,0.52]
[1718070781024,2.42383,69001.0,69000.0,0.52]
[1718070781359,0.5,68972.0,68971.0,0.10820881]
[1718070781581,0.43,68947.0,68946.0,0.12104365]
[1718070781810,0.2,68927.0,68926.0,0.47948204]
[1718070782040,2.37128493,68927.0,68926.0,0.46448204]
[1718070782256,0.30402384,68927.0,68926.0,0.46448204]
[1718070782504,0.0043,68947.0,68928.0,0.5]
[1718070782715,8e-05,68961.0,68930.0,0.1536]
[1718070782933,0.58024,68946.0,68930.0,0.1486]
[1718070783146,0.0143,68945.0,68930.0,0.1486]
[1718070783366,0.0143,68945.0,68930.0,0.14386905]
[1718070783367,0.0286,68945.0,68930.0,0.14386905]
[1718070783588,0.7,68930.0,68927.0,0.0807]
[1718070783805,0.58024,68944.0,68931.0,0.01228357]
[1718070784029,0.56795643,68929.0,68928.0,0.0155255]
[1718070784240,0.56795643,68929.0,68928.0,0.1]
[1718070784465,8e-05,68964.0,68928.0,0.7058]
[1718070784677,1.62603525,68890.0,68833.0,0.0620397]
[1718070784900,0.08,68975.0,68926.0,0.1]
[1718070784901,0.59481,68929.0,68926.0,0.1]
[1718070785263,0.59481,68929.0,68879.0,0.36315996]
[1718070785264,0.33964756,68889.0,68888.0,0.1]
[1718070785267,0.18250789,68889.0,68888.0,0.1]
[1718070785520,0.1,68928.0,68901.0,0.058016]
[1718070785742,0.43552808,68928.0,68927.0,0.21647989]
[1718070785953,0.43552808,68928.0,68927.0,1.05715996]
[1718070786163,0.28988865,68928.0,68927.0,1.06715996]
[1718070786330,0.17034199,68928.0,68927.0,1.48120184]
[1718070786553,0.17001442,68928.0,68927.0,1.58120184]
[1718070786780,0.17001442,68928.0,68927.0,1.97341]
[1718070786982,0.15401442,68928.0,68927.0,0.14203218]
[1718070787218,0.15401442,68928.0,68927.0,0.24203218]
[1718070787557,0.15373765,68928.0,68927.0,0.28909719]
[1718070787777,0.43295979,68959.0,68940.0,0.145051]
[1718070787988,0.53295979,68959.0,68952.0,0.0751]
[1718070788199,0.1,68957.0,68954.0,0.07215996]
[1718070788400,0.1,68948.0,68914.0,0.1]
[1718070788530,0.1,68931.0,68906.0,0.145123]
[1718070788737,0.50797004,68947.0,68870.0,0.50573302]
[1718070788738,0.1,68911.0,68882.0,0.07223996]
[1718070788961,0.1,68896.0,68882.0,0.07215996]
[1718070789161,0.02,68922.0,68819.0,0.00948199]
[1718070789162,0.1,68890.0,68875.0,0.5]
[1718070789453,0.50797004,68895.0,68853.0,0.07215996]
[1718070789454,0.50797004,68895.0,68879.0,0.3265]
[1718070789666,0.1,68883.0,68879.0,0.3265]
[1718070789889,0.50797004,68889.0,68864.0,0.291]
[1718070790096,0.1,68880.0,68877.0,0.145185]
[1718070790311,0.50348977,68882.0,68878.0,0.165]
[1718070790525,0.1,68911.0,68881.0,0.14431993]
[1718070790765,0.1,68907.0,68881.0,0.14431993]
[1718070790982,0.58059,68910.0,68896.0,0.1614]
[1718070791201,0.08,68933.0,68898.0,0.0759]
[1718070791442,0.08,68942.0,68899.0,0.10361199]
[1718070791661,0.43295979,68952.0,68910.0,0.07215996]
[1718070791888,0.43295979,68952.0,68929.0,0.145075]
[1718070792101,0.58029,68951.0,68936.0,0.14431993]
[1718070792327,0.58029,68951.0,68939.0,0.14431993]
[1718070792541,0.43295979,68969.0,68942.0,0.14431993]
[1718070792772,0.58017,68950.0,68943.0,0.245047]
[1718070793016,0.058003,68975.0,68950.0,0.145032]
[1718070793232,0.43295979,68971.0,68953.0,0.145025]
[1718070793453,0.07215996,68977.0,68955.0,0.01366294]
[1718070793454,0.2,68977.0,68955.0,0.01366294]
[1718070793690,0.58003,68970.0,68957.0,0.145016]
[1718070794165,0.07215996,68969.0,68958.0,0.01344391]
[1718070794371,0.1,68958.0,68954.0,0.02050267]
[1718070794590,0.07215996,68962.0,68912.0,0.43295979]
[1718070794591,0.07215996,68955.0,68933.0,0.145068]
[1718070794813,0.07215996,68945.0,68933.0,0.145068]
[1718070795018,0.07215996,68945.0,68931.0,0.058008]
[1718070795019,0.07215996,68936.0,68931.0,0.058008]
[1718070795251,0.07215996,68936.0,68934.0,0.02257593]
[1718070795464,0.58003,68935.0,68929.0,0.145076]
[1718070795931,0.43295979,68968.0,68928.0,0.1528]
[1718070796161,0.00028,68934.0,68932.0,0.14431993]
[1718070796389,0.00028,68934.0,68933.0,0.145068]
[1718070796654,0.00028,68934.0,68930.0,0.058014]
[1718070796655,0.5446818,68933.0,68930.0,0.058014]
[1718070796906,0.0046818,68933.0,68930.0,0.058014]
[1718070797123,0.0046818,68933.0,68932.0,0.14431993]
[1718070797569,0.0046818,68933.0,68921.0,0.145093]
[1718070797822,0.07215996,68924.0,68916.0,0.1551]
[1718070798034,0.0046818,68933.0,68916.0,0.1551]
[1718070798035,0.0046818,68933.0,68917.0,0.14431993]
[1718070798264,0.1,68947.0,68922.0,0.14509]
[1718070798488,0.50511975,68966.0,68917.0,0.14431993]
[1718070798721,0.58026,68946.0,68940.0,0.14431993]
[1718070798953,0.58026,68946.0,68945.0,0.145043]
[1718070799163,0.58026,68946.0,68945.0,0.227543]
[1718070799381,0.58026,68946.0,68945.0,0.52696293]
[1718070799810,0.58026,68946.0,68945.0,0.62696293]
[1718070800014,0.58026,68946.0,68945.0,0.245043]
[1718070800218,0.58026,68946.0,68945.0,0.38936293]
[1718070800458,0.58026,68946.0,68945.0,0.245043]
[1718070800838,0.58026,68946.0,68933.0,0.145067]
[1718070801048,0.58026,68946.0,68936.0,0.43295979]
[1718070801263,0.58026,68946.0,68937.0,0.14431993]
[1718070801489,0.58026,68946.0,68933.0,0.0303667]
[1718070801490,0.58026,68946.0,68945.0,0.145043]
[1718070801713,0.58026,68946.0,68945.0,0.28936293]
[1718070801935,0.58026,68946.0,68934.0,0.145064]
[1718070802149,0.07215996,68935.0,68934.0,0.145064]
[1718070802369,0.58026,68935.0,68934.0,0.25242121]
[1718070803734,0.58026,68935.0,68934.0,0.35242121]
[1718070803953,0.58026,68935.0,68934.0,0.37643552]
[1718070804884,0.58026,68935.0,68934.0,0.26907831]
[1718070805123,0.7306983,68935.0,68934.0,0.26907831]
[1718070805371,0.7306983,68935.0,68934.0,0.16907831]
[1718070805566,1.25721513,68935.0,68934.0,0.30629176]
[1718070805794,1.05303313,68935.0,68934.0,0.16197183]
[1718070806006,1.03155117,68935.0,68934.0,0.30629176]
[1718070806441,1.03155117,68935.0,68934.0,0.28938393]
[1718070806667,1.03155117,68935.0,68934.0,0.145064]
[1718070806901,1.70843121,68935.0,68934.0,0.28938393]
[1718070807127,1.70843121,68935.0,68934.0,0.67951593]
[1718070807354,1.70843121,68935.0,68934.0,0.75761593]
[1718070807579,1.78363808,68935.0,68934.0,0.83337752]
[1718070807803,0.75200277,68962.0,68938.0,0.5]
[1718070808025,0.07215996,68963.0,68938.0,0.5]
[1718070808026,0.07215996,68963.0,68961.0,0.145009]
[1718070808264,0.1,68982.0,68960.0,0.145011]
[1718070808265,0.435121,68961.0,68960.0,0.145011]
[1718070808502,0.435121,68961.0,68960.0,0.1145011]
[1718070808724,0.07215996,68977.0,68961.0,0.5]
[1718070808939,0.26658811,68981.0,68962.0,0.2653]
[1718070809158,0.435007,68976.0,68975.0,0.14431993]
[1718070809379,0.435007,68976.0,68975.0,0.15875192]
[1718070809598,0.07215996,68993.0,68983.0,0.14457316]
[1718070809801,0.07215996,68993.0,68975.0,0.15875192]
[1718070809802,0.07215996,68993.0,68976.0,0.14431993]
[1718070810007,0.65200996,68984.0,68976.0,0.14431993]
[1718070810220,0.57985,68984.0,68977.0,0.14431993]
[1718070810437,0.57985,68984.0,68983.0,0.28928293]
[1718070810685,0.43295979,69009.0,68983.0,0.14431993]
[1718070810923,0.43295979,69009.0,69000.0,0.144927]
[1718070811122,0.434853,69000.0,68993.0,0.435]
[1718070811341,0.434853,69000.0,68999.0,0.144929]
[1718070811564,0.434853,69000.0,68999.0,0.30374183]
[1718070811778,0.434853,69000.0,68999.0,0.56334183]
[1718070811988,0.434853,69000.0,68999.0,0.63974183]
[1718070812209,0.434853,69000.0,68999.0,0.92960083]
[1718070813532,0.434853,69000.0,68999.0,0.62524893]
[1718070813773,0.434853,69000.0,68999.0,0.244929]
[1718070814058,0.434453,69000.0,68999.0,0.244929]
[1718070814763,0.434453,69000.0,68999.0,0.144929]
[1718070814998,0.434453,69000.0,68999.0,0.28924893]
[1718070815226,0.434453,69000.0,68999.0,0.02892489]
[1718070815445,0.434453,69000.0,68999.0,0.144929]
[1718070815674,0.57877293,69000.0,68999.0,0.144929]
[1718070815919,0.57877293,69000.0,68968.0,0.0771]
[1718070815920,0.81697293,69000.0,68968.0,0.0771]
[1718070816154,0.81697293,69000.0,68953.0,0.5]
[1718070816155,0.04215996,68990.0,68959.0,0.43295979]
[1718070816378,0.08,68986.0,68944.0,0.1598]
[1718070816586,0.1,68973.0,68965.0,0.145]
[1718070816807,0.1,68973.0,68934.0,0.36597359]
[1718070816808,0.07215996,68948.0,68946.0,0.145041]
[1718070817038,0.434453,68947.0,68946.0,0.145041]
[1718070817517,0.434453,68947.0,68946.0,0.28936093]
[1718070817976,0.434453,68947.0,68946.0,0.145041]
[1718070818193,0.434453,68947.0,68946.0,0.59396856]
[1718070818410,0.43295979,68983.0,68981.0,0.144967]
[1718070818642,0.07215996,68982.0,68981.0,0.144967]
[1718070818856,0.65926849,68982.0,68981.0,0.144967]
[1718070819067,0.65201996,68982.0,68981.0,0.144967]
[1718070819282,0.79633989,68982.0,68981.0,0.144967]
[1718070819509,0.79633989,68982.0,68981.0,0.13879295]
[1718070819772,0.79633989,68982.0,68981.0,0.13604322]
[1718070819986,0.89579482,68982.0,68947.0,8e-05]
[1718070820197,0.07215996,68963.0,68948.0,0.43295979]
[1718070820422,0.07215996,68956.0,68955.0,0.145022]
[1718070820632,0.07215996,68956.0,68948.0,0.0088231]
[1718070820633,0.434851,68956.0,68948.0,0.0088231]
[1718070820876,0.07215996,68954.0,68953.0,0.145026]
[1718070821102,0.50701096,68954.0,68953.0,0.145026]
[1718070821537,0.65133089,68954.0,68953.0,0.145026]
[1718070822908,0.65133089,68954.0,68945.0,0.0011613]
[1718070822909,0.1,68951.0,68945.0,0.0011613]
[1718070823127,0.1,68951.0,68908.0,0.43295979]
[1718070823128,0.1,68943.0,68913.0,8e-05]
[1718070823365,0.07215996,68919.0,68908.0,0.43295979]
[1718070823658,0.289766,68918.0,68913.0,0.058019]
[1718070823873,0.1,68934.0,68931.0,0.14507]
[1718070824107,0.435223,68933.0,68913.0,0.14431993]
[1718070824328,0.435223,68933.0,68932.0,0.14507]
[1718070825212,0.00038597,68956.0,68955.0,0.145022]
[1718070825635,0.00038597,68956.0,68955.0,0.245022]
[1718070825854,0.58046597,68956.0,68955.0,0.245022]
[1718070826071,0.12330864,68981.0,68955.0,0.38934193]
[1718070826291,0.0812,68981.0,68980.0,0.144969]
[1718070826512,0.1142686,68982.0,68980.0,0.144969]
[1718070826729,0.57987,68981.0,68980.0,0.144969]
[1718070827170,0.57987,68981.0,68980.0,0.244969]
[1718070827436,0.07215996,68990.0,68980.0,0.38928893]
[1718070827648,0.07215996,68997.0,68996.0,0.144935]
[1718070827868,0.04715996,68997.0,68996.0,0.15651733]
[1718070828086,0.62689996,68997.0,68996.0,0.15651733]
[1718070828521,0.62689996,68997.0,68996.0,0.144935]
[1718070829396,0.77121989,68997.0,68996.0,0.15372305]
[1718070829606,0.67689996,68997.0,68996.0,0.15372305]
[1718070829820,0.57689996,68997.0,68996.0,0.15372305]
[1718070830031,0.57689996,68997.0,68996.0,0.144935]
[1718070830235,0.57689996,68997.0,68996.0,0.15372305]
[1718070831126,0.72121989,68997.0,68996.0,0.15372305]
[1718070831341,0.79337985,68997.0,68996.0,0.15372305]
[1718070831569,0.79337985,68997.0,68996.0,0.144935]
[1718070831570,1.09400266,68997.0,68996.0,0.144935]
[1718070831780,1.09400095,68997.0,68996.0,0.144935]
[1718070831993,0.79337985,68997.0,68957.0,0.290035]
[1718070832226,0.07215996,68971.0,68970.0,0.14499]
[1718070832447,0.64905992,68971.0,68970.0,0.14499]
[1718070832912,0.64905992,68971.0,68970.0,0.15207027]
[1718070833128,0.57689996,68971.0,68970.0,0.14499]
[1718070833391,0.57689996,68971.0,68970.0,0.15207027]
[1718070833842,0.04210864,68993.0,68970.0,0.7583902]
[1718070834081,0.57987,68992.0,68976.0,0.144976]
[1718070834315,0.57987,68992.0,68975.0,0.435]
[1718070834548,0.57987,68992.0,68970.0,0.75906127]
[1718070834549,0.07215996,68983.0,68977.0,0.00712904]
[1718070834775,0.07215996,68983.0,68957.0,0.435]
[1718070834776,0.08,68980.0,68976.0,0.00713154]
[1718070835064,0.08,68980.0,68938.0,0.3214]
[1718070835065,0.58712106,68979.0,68938.0,0.3214]
[1718070835303,0.07215996,68953.0,68952.0,0.145028]
[1718070835556,0.65202996,68953.0,68952.0,0.145028]
[1718070835993,0.65202996,68953.0,68924.0,8e-05]
[1718070835994,0.4592,68952.0,68924.0,8e-05]
[1718070836241,0.07215996,68925.0,68910.0,0.47038894]
[1718070836470,0.434783,68924.0,68910.0,0.47038894]
[1718070836709,0.434783,68924.0,68923.0,0.145089]
[1718070838426,0.434783,68924.0,68923.0,0.435267]
[1718070839149,0.434783,68924.0,68923.0,0.245089]
[1718070839381,0.434783,68924.0,68923.0,0.67958693]
[1718070839618,0.434783,68924.0,68923.0,0.535267]
[1718070839867,0.434783,68924.0,68923.0,0.245089]
[1718070840107,0.434783,68924.0,68923.0,0.145089]
[1718070840356,0.57910293,68924.0,68923.0,0.145089]
[1718070840603,1.12391322,68924.0,68923.0,0.145089]
[1718070840864,0.1,68921.0,68910.0,0.01288894]
[1718070841088,0.57910293,68920.0,68919.0,0.145097]
[1718070841297,0.434783,68920.0,68919.0,0.145097]
[1718070841514,0.57910293,68920.0,68919.0,0.145097]
[1718070841728,0.434783,68920.0,68919.0,0.145097]
[1718070842866,0.434783,68920.0,68919.0,1.03121193]
[1718070842867,0.06231481,68920.0,68919.0,1.03121193]
[1718070843340,0.06231481,68920.0,68919.0,1.04081592]
[1718070843580,0.06231481,68920.0,68919.0,0.99649599]
[1718070843818,0.06231481,68920.0,68919.0,1.03121193]
[1718070844056,0.06231481,68920.0,68919.0,1.42140693]
[1718070844277,0.38875996,68953.0,68952.0,0.145028]
[1718070844506,0.08,68970.0,68919.0,0.98611493]
[1718070844507,0.5846,68965.0,68919.0,0.69591993]
[1718070844730,0.58011,68953.0,68928.0,0.1526]
[1718070844947,0.58011,68953.0,68952.0,0.145028]
[1718070845168,0.55011,68953.0,68952.0,0.145028]
[1718070845589,0.69442993,68953.0,68952.0,0.145028]
[1718070846250,0.1,68940.0,68939.0,0.145055]
[1718070846500,0.55011,68940.0,68939.0,0.145055]
[1718070846931,0.55011,68940.0,68939.0,0.435166]
[1718070847135,0.55011,68940.0,68939.0,1.22498593]
[1718070847348,0.55011,68940.0,68939.0,1.51509693]
[1718070848017,0.07215996,68967.0,68966.0,0.144998]
[1718070848231,0.1,68972.0,68946.0,0.297501]
[1718070848446,0.478,68973.0,68947.0,0.14431993]
[1718070848662,0.478,68973.0,68966.0,0.00653382]
[1718070848663,0.435066,68972.0,68966.0,0.00653382]
[1718070848892,0.435066,68972.0,68971.0,0.144988]
[1718070849552,0.22,68980.0,68971.0,0.144988]
[1718070849553,0.04247582,69006.0,68972.0,0.7954]